[Event "Charlotte Open 2024"]
[Site "Charlotte"]
[Date "2024.01.15"]
[Round "4.12"]
[White "Rajagopal, Adharsh"]
[Black "Vanapalli, Vishnu"]
[Result "0-1"]
[ECO "A70"]
[WhiteElo "1895"]
[BlackElo "2276"]
[Annotator "RC"]
[PlyCount "52"]
[EventDate "2024.01.05"]
[EventType "swiss"]
[EventCountry "USA"]
[SourceTitle "playchess.com"]
[Source "ChessBase"]
[SourceQuality "1"]
[TimeControl "6600+10"]

1. d4 {[%emt 0:03:12]} Nf6 {[%emt 0:02:11]} 2. c4 {[%emt 0:00:05]} c5 {[%emt 0:01:11]} 3. d5 {[%emt 0:00:05]} e6 {[%emt 0:00:06]} 4. Nc3 {[%emt 0:00:04]} exd5 {[%emt 0:00:05]} 5. cxd5 {[%emt 0:00:04]} d6 {[%emt 0:00:07]} 6. e4 {[%emt 0:00:04]} g6 {[%emt 0:00:04]} 7. Bd3 {[%emt 0:00:19]} Bg7 {[%emt 0:00:14]} 8. h3 {[%emt 0:00:05]} O-O {[%emt 0:00:10]} 9. Nf3 {[%emt 0:00:08]} Re8 {[%emt 0:00:40]} 10. O-O {[%emt 0:00:07]} Nbd7 {[%emt 0:00:06]} 11. Bf4 {[%emt 0:01:01]} c4 {[%emt 0:00:08]} 12. Bc2 {[%emt 0:01:07]} Nc5 {[%emt 0:00:20]} 13. Re1 {[%emt 0:00:37]} b5 {[%emt 0:00:38]} 14. e5 {[%emt 0:17:08]} dxe5 {[%emt 0:00:29]} 15. Nxe5 {[%emt 0:00:13]} Bb7 {[%emt 0:03:31]} 16. Nxb5 {[%emt 0:27:15]} Nxd5 {[%emt 0:09:00]} 17. Bg3 {[%emt 0:00:54]} Nb4 {[%emt 0:02:03]} 18. Qc1 {[%emt 0:09:23]} Bxe5 {[%emt 0:31:57]} 19. Bxe5 {[%emt 0:02:42]} Qd5 {[%emt 0:00:23]} 20. f3 {[%emt 0:04:44]} Rxe5 {[%emt 0:01:26]} 21. Rxe5 {[%emt 0:01:42]} Qxe5 {[%emt 0:01:04]} 22. Nc3 {[%emt 0:00:19]} Rd8 {[%emt 0:00:53]} 23. a3 {[%emt 0:00:54]} Nxc2 {[%emt 0:01:38]} 24. Qxc2 {[%emt 0:00:07]} Qe3+ {[%emt 0:00:04]} 25. Qf2 {[%emt 0:00:17]} Qxf2+ {[%emt 0:00:06]} 26. Kxf2 {[%emt 0:00:07]} Rd2+ {[%emt 0:00:06]} 0-1

[Event "Charlotte Open 2024"]
[Site "Charlotte"]
[Date "2024.01.15"]
[Round "4.13"]
[White "Titus, Andrew"]
[Black "Wu, William"]
[Result "1-0"]
[ECO "C60"]
[WhiteElo "2202"]
[BlackElo "1965"]
[Annotator "RC"]
[PlyCount "123"]
[EventDate "2024.01.05"]
[EventType "swiss"]
[EventCountry "USA"]
[SourceTitle "playchess.com"]
[Source "ChessBase"]
[SourceQuality "1"]
[TimeControl "6600+10"]

1. e4 {[%emt 0:00:01]} e5 {[%emt 0:02:01]} 2. Nf3 {[%emt 0:00:06]} Nc6 {[%emt 0:00:21]} 3. Bb5 {[%emt 0:00:01]} g6 {[%emt 0:00:24]} 4. d4 {[%emt 0:06:58]} exd4 {[%emt 0:00:21]} 5. Bg5 {[%emt 0:00:08]} Be7 {[%emt 0:00:27]} 6. Bxe7 {[%emt 0:00:06]} Qxe7 {[%emt 0:00:14]} 7. O-O {[%emt 0:00:53]} Nf6 {[%emt 0:01:50]} 8. e5 {[%emt 0:05:07]} Nh5 {[%emt 0:03:58]} 9. Bxc6 {[%emt 0:09:15]} dxc6 {[%emt 0:00:48]} 10. Qxd4 {[%emt 0:00:08]} O-O {[%emt 0:03:53]} 11. Nc3 {[%emt 0:02:49]} Rd8 {[%emt 0:06:40]} 12. Qe3 {[%emt 0:01:32]} Be6 {[%emt 0:23:30]} 13. Nd2 {[%emt 0:11:01]} Qb4 {[%emt 0:16:45]} 14. Nde4 {[%emt 0:02:05]} Qd4 {[%emt 0:01:52]} 15. Qg5 {[%emt 0:01:08]} h6 {[%emt 0:14:30]} 16. Nf6+ {[%emt 0:06:37]} Nxf6 {[%emt 0:00:12]} 17. Qxf6 {[%emt 0:00:07]} Qg4 {[%emt 0:05:14]} 18. f3 {[%emt 0:03:52]} Qf5 {[%emt 0:01:54]} 19. Ne4 {[%emt 0:00:20]} Qxf6 {[%emt 0:00:27]} 20. Nxf6+ {[%emt 0:00:08]} Kg7 {[%emt 0:01:17]} 21. Rad1 {[%emt 0:07:34]} a5 {[%emt 0:06:00]} 22. a3 {[%emt 0:00:42]} Bf5 {[%emt 0:00:18]} 23. c3 {[%emt 0:01:02]} Bc2 {[%emt 0:00:50]} 24. Rc1 {[%emt 0:04:16]} Bb3 {[%emt 0:00:54]} 25. Rf2 {[%emt 0:00:33]} a4 {[%emt 0:01:16]} 26. h4 {[%emt 0:01:06]} c5 {[%emt 0:04:27]} 27. Re1 {[%emt 0:01:25]} b5 {[%emt 0:00:45]} 28. f4 {[%emt 0:45:50]} Rd3 {[%emt 0:00:52]} 29. Ne4 {[%emt 0:00:00]} Rd5 {[%emt 0:00:25]} 30. g4 {[%emt 0:00:00]} Rad8 {[%emt 0:00:21]} 31. Kh2 {[%emt 0:00:00]} b4 {[%emt 0:00:21]} 32. axb4 {[%emt 0:00:00]} cxb4 {[%emt 0:12:23]} 33. cxb4 {[%emt 0:00:00]} Rb8 {[%emt 0:00:00]} 34. Rc1 {[%emt 0:00:00]} Rxb4 {[%emt 0:00:00]} 35. Nf6 {[%emt 0:00:00]} Rdd4 {[%emt 0:00:00]} 36. Rxc7 {[%emt 0:00:00]} Rxf4 {[%emt 0:00:00]} 37. Rxf4 {[%emt 0:00:00]} Rxf4 {[%emt 0:00:00]} 38. Rc8 {[%emt 0:00:00]} Rxf6 {[%emt 0:00:00]} 39. exf6+ {[%emt 0:00:00]} Kxf6 {[%emt 0:00:00]} 40. Rh8 {[%emt 0:00:00]} Ke5 {[%emt 0:00:00]} 41. Rxh6 {[%emt 0:00:00]} Kf4 {[%emt 0:00:00]} 42. h5 {[%emt 0:00:00]} Kg5 {[%emt 0:00:00]} 43. Rh8 {[%emt 0:00:00]} Kxg4 {[%emt 0:00:00]} 44. h6 {[%emt 0:00:00]} Kh5 {[%emt 0:00:00]} 45. Kg3 {[%emt 0:00:00]} g5 {[%emt 0:00:00]} 46. h7 {[%emt 0:00:00]} Bc2 {[%emt 0:00:00]} 47. Ra8 {[%emt 0:00:00]} Bxh7 {[%emt 0:00:00]} 48. Rxa4 {[%emt 0:00:00]} f5 {[%emt 0:00:00]} 49. b4 {[%emt 0:00:00]} f4+ {[%emt 0:00:00]} 50. Kf3 {[%emt 0:00:00]} Bc2 {[%emt 0:00:26]} 51. Ra1 {[%emt 0:00:00]} Bd3 {[%emt 0:00:14]} 52. Rc1 {[%emt 0:00:00]} Ba6 {[%emt 0:00:27]} 53. Rc7 {[%emt 0:00:00]} Bd3 {[%emt 0:00:51]} 54. Rc5 {[%emt 0:00:00]} Ba6 {[%emt 0:00:05]} 55. b5 {[%emt 0:00:00]} Bb7+ {[%emt 0:00:02]} 56. Kf2 {[%emt 0:00:00]} Kh4 {[%emt 0:00:23]} 57. Rc7 {[%emt 0:00:00]} Be4 {[%emt 0:00:03]} 58. Re7 {[%emt 0:00:00]} Bd3 {[%emt 0:00:39]} 59. b6 {[%emt 0:00:00]} g4 {[%emt 0:00:09]} 60. b7 {[%emt 0:00:00]} g3+ {[%emt 0:00:13]} 61. Kf3 {[%emt 0:00:00]} g2 {[%emt 0:00:53]} 62. Kxg2 {[%emt 0:00:00]} 1-0

[Event "Charlotte Open 2024"]
[Site "Charlotte"]
[Date "2024.01.15"]
[Round "4.14"]
[White "Prabhu, Naveen"]
[Black "Joseph, Jonath"]
[Result "1-0"]
[ECO "C54"]
[WhiteElo "2103"]
[BlackElo "2149"]
[Annotator "RC"]
[PlyCount "61"]
[EventDate "2024.01.05"]
[EventType "swiss"]
[EventCountry "USA"]
[SourceTitle "playchess.com"]
[Source "ChessBase"]
[SourceQuality "1"]
[TimeControl "6600+10"]

1. e4 {[%emt 0:01:20]} e5 {[%emt 0:05:11]} 2. Nf3 {[%emt 0:00:08]} Nc6 {[%emt 0:00:04]} 3. Bc4 {[%emt 0:00:04]} Bc5 {[%emt 0:00:04]} 4. c3 {[%emt 0:00:05]} d6 {[%emt 0:00:02]} 5. O-O {[%emt 0:01:02]} Nf6 {[%emt 0:01:43]} 6. d3 {[%emt 0:03:57]} a5 {[%emt 0:01:25]} 7. Bg5 {[%emt 0:00:13]} h6 {[%emt 0:00:08]} 8. Bh4 {[%emt 0:00:02]} Bg4 {[%emt 0:01:33]} 9. Nbd2 {[%emt 0:00:18]} g5 {[%emt 0:01:00]} 10. Bg3 {[%emt 0:00:02]} Ne7 {[%emt 0:00:06]} 11. d4 {[%emt 0:07:04]} exd4 {[%emt 0:03:35]} 12. cxd4 {[%emt 0:01:37]} Bb4 {[%emt 0:06:03]} 13. e5 {[%emt 0:10:35]} Nh5 {[%emt 0:00:05]} 14. exd6 {[%emt 0:09:52]} Bxd6 {[%emt 0:00:06]} 15. h3 {[%emt 1:16:21]} Nxg3 {[%emt 0:06:34]} 16. Bxf7+ {[%emt 0:00:00]} Kxf7 {[%emt 0:03:22]} 17. fxg3 {[%emt 0:00:00]} Kg7 {[%emt 0:19:50]} 18. hxg4 {[%emt 0:00:00]} Qd7 {[%emt 0:09:25]} 19. Ne4 {[%emt 0:00:00]} Rhf8 {[%emt 0:03:35]} 20. Qb3 {[%emt 0:00:00]} a4 {[%emt 0:01:48]} 21. Qd3 {[%emt 0:00:00]} Qxg4 {[%emt 0:04:20]} 22. Nxd6 {[%emt 0:00:00]} cxd6 {[%emt 0:00:19]} 23. Qb5 {[%emt 0:00:00]} Qxg3 {[%emt 0:01:14]} 24. Qxb7 {[%emt 0:00:00]} Rae8 {[%emt 0:00:08]} 25. Rae1 {[%emt 0:00:00]} Rf7 {[%emt 0:16:34]} 26. Qd7 {[%emt 0:00:00]} Nd5 {[%emt 0:14:18]} 27. Qxe8 {[%emt 0:00:00]} Nf4 {[%emt 0:00:05]} 28. Re2 {[%emt 0:00:00]} Rf8 {[%emt 0:04:39]} 29. Qe3 {[%emt 0:00:00]} h5 {[%emt 0:02:00]} 30. Nd2 {[%emt 0:00:00]} h4 {[%emt 0:00:34]} 31. Rxf4 {[%emt 0:00:00]} 1-0

[Event "Charlotte Open 2024"]
[Site "Charlotte"]
[Date "2024.01.15"]
[Round "4.15"]
[White "Ippolito, Dean"]
[Black "Parker, Anthony"]
[Result "1/2-1/2"]
[ECO "A96"]
[WhiteElo "2379"]
[BlackElo "1909"]
[Annotator "RC"]
[PlyCount "50"]
[EventDate "2024.01.05"]
[EventType "swiss"]
[EventCountry "USA"]
[SourceTitle "playchess.com"]
[Source "ChessBase"]
[SourceQuality "1"]
[TimeControl "6600+10"]

1. d4 {[%emt 0:00:01]} f5 {[%emt 0:01:51]} 2. c4 {[%emt 0:00:25]} e6 {[%emt 0:00:31]} 3. g3 {[%emt 0:00:06]} Nf6 {[%emt 0:00:05]} 4. Bg2 {[%emt 0:00:03]} Be7 {[%emt 0:00:11]} 5. Nf3 {[%emt 0:00:06]} d6 {[%emt 0:00:26]} 6. O-O {[%emt 0:00:16]} O-O {[%emt 0:00:08]} 7. Nc3 {[%emt 0:00:05]} Ne4 {[%emt 0:00:04]} 8. Nxe4 {[%emt 0:00:31]} fxe4 {[%emt 0:00:07]} 9. Ne1 {[%emt 0:00:22]} d5 {[%emt 0:00:56]} 10. Be3 {[%emt 0:00:09]} Nd7 {[%emt 0:11:16]} 11. Qc2 {[%emt 0:00:40]} Nf6 {[%emt 0:02:45]} 12. f3 {[%emt 0:03:37]} dxc4 {[%emt 0:03:04]} 13. Qxc4 {[%emt 0:03:33]} Nd5 {[%emt 0:00:15]} 14. Qb3 {[%emt 0:22:33]} Nxe3 {[%emt 0:15:42]} 15. Qxe3 {[%emt 0:00:30]} Bf6 {[%emt 0:00:05]} 16. Nc2 {[%emt 0:01:46]} exf3 {[%emt 0:00:35]} 17. exf3 {[%emt 0:03:32]} Qd6 {[%emt 0:00:44]} 18. f4 {[%emt 0:01:02]} Bd7 {[%emt 0:00:17]} 19. Rfe1 {[%emt 0:07:11]} Rfe8 {[%emt 0:00:37]} 20. Qc3 {[%emt 0:00:44]} Qb6 {[%emt 0:14:29]} 21. Kh1 {[%emt 0:02:44]} Rac8 {[%emt 0:00:31]} 22. Qb3 {[%emt 0:19:35]} Bc6 {[%emt 0:14:02]} 23. Qxb6 {[%emt 0:06:17]} Bxg2+ {[%emt 0:01:46]} 24. Kxg2 {[%emt 0:00:05]} cxb6 {[%emt 0:00:04]} 25. Re2 {[%emt 0:00:48]} Red8 {[%emt 0:03:17]} 1/2-1/2

[Event "Charlotte Open 2024"]
[Site "Charlotte"]
[Date "2024.01.15"]
[Round "4.16"]
[White "King, Alexander"]
[Black "Karthik, Advaith"]
[Result "0-1"]
[ECO "E58"]
[WhiteElo "2302"]
[BlackElo "2124"]
[Annotator "RC"]
[PlyCount "72"]
[EventDate "2024.01.05"]
[EventType "swiss"]
[EventCountry "USA"]
[SourceTitle "playchess.com"]
[Source "ChessBase"]
[SourceQuality "1"]
[TimeControl "6600+10"]

1. d4 {[%emt 1:50:20]} Nf6 {[%emt 0:15:00]} 2. c4 {[%emt 0:00:00]} e6 {[%emt 0:00:10]} 3. Nc3 {[%emt 0:00:00]} Bb4 {[%emt 0:00:07]} 4. e3 {[%emt 0:00:00]} O-O {[%emt 0:00:13]} 5. Bd3 {[%emt 0:00:00]} c5 {[%emt 0:00:20]} 6. Nf3 {[%emt 0:00:00]} d5 {[%emt 0:00:16]} 7. O-O {[%emt 0:00:00]} Nc6 {[%emt 0:00:21]} 8. a3 {[%emt 0:00:00]} Bxc3 {[%emt 0:00:41]} 9. bxc3 {[%emt 0:00:00]} dxc4 {[%emt 0:00:22]} 10. Bxc4 {[%emt 0:00:00]} Qc7 {[%emt 0:00:09]} 11. h3 {[%emt 0:00:00]} b6 {[%emt 0:11:16]} 12. Qe2 {[%emt 0:00:00]} Bb7 {[%emt 0:02:14]} 13. Bb2 {[%emt 0:00:00]} Rac8 {[%emt 0:13:14]} 14. Bd3 {[%emt 0:00:00]} e5 {[%emt 0:20:16]} 15. e4 {[%emt 0:00:00]} exd4 {[%emt 0:00:57]} 16. cxd4 {[%emt 0:00:00]} Nxd4 {[%emt 0:00:34]} 17. Nxd4 {[%emt 0:00:00]} cxd4 {[%emt 0:00:05]} 18. Bxd4 {[%emt 0:00:00]} Qd6 {[%emt 0:01:14]} 19. Bb2 {[%emt 0:00:00]} Rfd8 {[%emt 0:03:35]} 20. Rad1 {[%emt 0:00:00]} Qe6 {[%emt 0:07:15]} 21. Rfe1 {[%emt 0:00:00]} Rd7 {[%emt 0:10:41]} 22. f4 {[%emt 0:00:00]} Rcd8 {[%emt 0:03:23]} 23. e5 {[%emt 0:00:00]} Nd5 {[%emt 0:04:39]} 24. f5 {[%emt 0:00:00]} Qc6 {[%emt 0:00:03]} 25. Qg4 {[%emt 0:02:43]} Nc3 {[%emt 0:02:24]} 26. Bxc3 {[%emt 0:01:12]} Qxc3 {[%emt 0:01:12]} 27. Bf1 {[%emt 0:00:14]} Rxd1 {[%emt 0:00:49]} 28. Rxd1 {[%emt 0:00:01]} Qe3+ {[%emt 0:00:07]} 29. Kh1 {[%emt 0:00:18]} Rxd1 {[%emt 0:00:12]} 30. Qxd1 {[%emt 0:00:02]} Qxh3+ {[%emt 0:00:07]} 31. Kg1 {[%emt 0:00:01]} Qe3+ {[%emt 0:00:10]} 32. Kh1 {[%emt 0:00:03]} h6 {[%emt 0:02:12]} 33. Qd8+ {[%emt 0:00:35]} Kh7 {[%emt 0:00:06]} 34. f6 {[%emt 0:00:09]} Qxe5 {[%emt 0:01:01]} 35. Qd7 {[%emt 0:00:11]} Qe1 {[%emt 0:03:45]} 36. Qf5+ {[%emt 0:00:10]} g6 {[%emt 0:00:12]} 0-1

[Event "Charlotte Open 2024"]
[Site "Charlotte"]
[Date "2024.01.15"]
[Round "4.17"]
[White "Liu, Ethan"]
[Black "Kogen, Jonathan"]
[Result "0-1"]
[ECO "B99"]
[WhiteElo "1967"]
[BlackElo "2220"]
[Annotator "RC"]
[PlyCount "90"]
[EventDate "2024.01.05"]
[EventType "swiss"]
[EventCountry "USA"]
[SourceTitle "playchess.com"]
[Source "ChessBase"]
[SourceQuality "1"]
[TimeControl "6600+10"]

1. e4 {[%emt 0:00:42]} c5 {[%emt 0:05:23]} 2. Nf3 {[%emt 0:00:06]} d6 {[%emt 0:00:06]} 3. d4 {[%emt 0:00:04]} cxd4 {[%emt 0:00:04]} 4. Nxd4 {[%emt 0:00:06]} Nf6 {[%emt 0:00:05]} 5. Nc3 {[%emt 0:00:04]} a6 {[%emt 0:00:16]} 6. Bg5 {[%emt 0:00:06]} e6 {[%emt 0:00:35]} 7. f4 {[%emt 0:00:08]} Be7 {[%emt 0:00:24]} 8. Qf3 {[%emt 0:00:11]} Qc7 {[%emt 0:00:27]} 9. O-O-O {[%emt 0:00:20]} Nbd7 {[%emt 0:00:40]} 10. g4 {[%emt 0:00:09]} h6 {[%emt 0:00:46]} 11. Bxf6 {[%emt 0:00:05]} Bxf6 {[%emt 0:00:18]} 12. h4 {[%emt 0:00:21]} Nb6 {[%emt 0:00:33]} 13. g5 {[%emt 0:01:17]} Bxd4 {[%emt 0:00:33]} 14. Rxd4 {[%emt 0:00:05]} Qc5 {[%emt 0:00:10]} 15. Rd2 {[%emt 0:04:14]} Bd7 {[%emt 0:01:20]} 16. g6 {[%emt 0:02:59]} O-O-O {[%emt 0:19:29]} 17. gxf7 {[%emt 0:12:11]} Rhf8 {[%emt 0:00:04]} 18. Be2 {[%emt 0:21:32]} Rxf7 {[%emt 0:09:50]} 19. Rhd1 {[%emt 0:02:13]} Rdf8 {[%emt 0:09:31]} 20. Qg3 {[%emt 0:08:44]} Na4 {[%emt 0:13:15]} 21. Nxa4 {[%emt 0:20:55]} Bxa4 {[%emt 0:00:08]} 22. Bg4 {[%emt 0:00:24]} Rxf4 {[%emt 0:13:48]} 23. Bxe6+ {[%emt 0:00:23]} Kb8 {[%emt 0:00:08]} 24. Qxg7 {[%emt 0:07:16]} Rf1 {[%emt 0:09:15]} 25. Bf5 {[%emt 0:12:00]} Rxd1+ {[%emt 0:02:42]} 26. Kxd1 {[%emt 0:00:07]} Re8 {[%emt 0:11:53]} 27. Kc1 {[%emt 0:03:32]} Bc6 {[%emt 0:07:33]} 28. Qd4 {[%emt 0:06:37]} Qxd4 {[%emt 0:01:26]} 29. Rxd4 {[%emt 0:00:02]} Kc7 {[%emt 0:00:07]} 30. Kd2 {[%emt 0:01:28]} Rg8 {[%emt 0:00:07]} 31. Ke3 {[%emt 0:03:33]} Rg1 {[%emt 0:00:38]} 32. Kf3 {[%emt 0:01:37]} Rb1 {[%emt 0:01:45]} 33. b3 {[%emt 0:00:04]} Rb2 {[%emt 0:00:10]} 34. Rd2 {[%emt 0:01:11]} Rxa2 {[%emt 0:00:16]} 35. Bg6 {[%emt 0:00:04]} Bd7 {[%emt 0:00:50]} 36. e5 {[%emt 0:00:04]} dxe5 {[%emt 0:00:26]} 37. Ke4 {[%emt 0:00:02]} Ra5 {[%emt 0:00:42]} 38. Bf7 {[%emt 0:01:01]} Rc5 {[%emt 0:00:27]} 39. Bd5 {[%emt 0:00:21]} Bc6 {[%emt 0:00:16]} 40. Kxe5 {[%emt 0:00:17]} Bxd5 {[%emt 0:00:08]} 41. Rxd5 {[%emt 0:00:02]} Rxc2 {[%emt 0:00:06]} 42. Rd3 {[%emt 0:00:21]} Rh2 {[%emt 0:00:13]} 43. Rd4 {[%emt 0:00:07]} a5 {[%emt 0:00:13]} 44. Kd5 {[%emt 0:00:12]} Rh3 {[%emt 0:00:09]} 45. Kc4 {[%emt 0:00:10]} Kc6 {[%emt 0:00:08]} 0-1

[Event "Charlotte Open 2024"]
[Site "Charlotte"]
[Date "2024.01.15"]
[Round "4.18"]
[White "Lutsenko, Aleksandr"]
[Black "Cooke, Grayson"]
[Result "1-0"]
[ECO "D34"]
[WhiteElo "1572"]
[BlackElo "1624"]
[Annotator "NA RC"]
[PlyCount "73"]
[EventDate "2024.01.05"]
[EventType "swiss"]
[EventCountry "USA"]
[SourceTitle "playchess.com"]
[Source "ChessBase"]
[SourceQuality "1"]
[TimeControl "6600+10"]

1. Nf3 {[%emt 0:10:33]} Nf6 {[%emt 0:10:04]} 2. g3 {[%emt 0:00:06]} d5 {[%emt 0:01:13]} 3. Bg2 {[%emt 1:40:01]} c5 {[%emt 0:00:36]} 4. O-O {[%emt 0:00:00]} Nc6 {[%emt 0:01:21]} 5. d4 {[%emt 0:00:00]} e6 {[%emt 0:01:16]} 6. c4 {[%emt 0:00:00]} Be7 {[%emt 0:02:25]} 7. cxd5 {[%emt 0:00:00]} exd5 {[%emt 0:00:33]} 8. Nc3 {[%emt 0:00:00]} h6 {[%emt 0:04:28]} 9. b3 {[%emt 0:00:00]} Bg4 {[%emt 0:05:57]} 10. dxc5 {[%emt 0:00:00]} Bxc5 {[%emt 0:00:35]} 11. Bb2 {[%emt 0:00:00]} O-O {[%emt 0:05:12]} 12. Rc1 {[%emt 0:00:00]} Be7 {[%emt 0:10:50]} 13. a3 {[%emt 0:00:00]} a6 {[%emt 0:05:18]} 14. Rc2 {[%emt 0:00:00]} d4 {[%emt 0:03:04]} 15. Na4 {[%emt 0:00:00]} Bf5 {[%emt 0:00:09]} 16. Rc1 {[%emt 0:00:00]} d3 {[%emt 0:14:55]} 17. exd3 {[%emt 0:00:00]} Bxd3 {[%emt 0:01:04]} 18. Re1 {[%emt 0:00:00]} Re8 {[%emt 0:02:22]} 19. Bxf6 {[%emt 0:00:00]} gxf6 {[%emt 0:00:05]} 20. Nc5 {[%emt 0:00:00]} Bxc5 {[%emt 0:00:16]} 21. Rxc5 {[%emt 0:00:00]} Be4 {[%emt 0:05:46]} 22. Qc1 {[%emt 0:00:00]} Bxf3 {[%emt 0:00:46]} 23. Rxe8+ {[%emt 0:00:00]} Qxe8 {[%emt 0:00:04]} 24. Bxf3 {[%emt 0:00:00]} Nd4 {[%emt 0:01:53]} 25. Qc3 {[%emt 0:00:00]} Rd8 {[%emt 0:01:21]} 26. Kg2 {[%emt 0:00:00]} Qd7 {[%emt 0:19:12]} 27. Rd5 {[%emt 0:00:00]} Qxd5 {[%emt 0:01:15]} 28. Bxd5 {[%emt 0:00:00]} Rxd5 {[%emt 0:00:06]} 29. Qc8+ {[%emt 0:00:00]} Kg7 {[%emt 0:00:03]} 30. Qxb7 {[%emt 0:00:00]} Rb5 {[%emt 0:00:59]} 31. Qxa6 {[%emt 0:00:00]} Re5 {[%emt 0:03:13]} 32. Qb6 {[%emt 0:00:00]} Nc2 {[%emt 0:00:16]} 33. a4 {[%emt 0:00:00]} Ne1+ {[%emt 0:00:03]} 34. Kf1 {[%emt 0:00:00]} Nf3 {[%emt 0:00:05]} 35. a5 {[%emt 0:00:00]} Kg6 {[%emt 0:03:00]} 36. a6 {[%emt 0:00:00]} Kh5 {[%emt 0:00:04]} 37. h3 {[%emt 0:00:00]} 1-0

[Event "Charlotte Open 2024"]
[Site "Charlotte"]
[Date "2024.01.15"]
[Round "5.1"]
[White "Sadorra, Julio Catalino"]
[Black "Troff, Kayden"]
[Result "0-1"]
[ECO "D85"]
[WhiteElo "2554"]
[BlackElo "2484"]
[Annotator "TA"]
[PlyCount "72"]
[EventDate "2024.01.05"]
[EventType "swiss"]
[EventCountry "USA"]
[SourceTitle "playchess.com"]
[Source "ChessBase"]
[SourceQuality "1"]
[TimeControl "6600+10"]

{[%evp 9,71,17,22,6,0,6,24,18,33,17,35,8,0,4,42,0,0,0,-10,-8,-8,0,0,0,0,0,0,0,25,-48,0,-489,-490,-664,-664,-656,-641,-775,-611,-600,-582,-802,-791,-1011,-981,-881,-550,-489,-270,-281,-252,-562,-552,-645,-343,-642,-618,-29995,-29996,-29996,-29997,-29998,-29999,-29999]} 1. d4 {[%emt 0:06:45]} Nf6 {[%emt 0:00:07]} 2. c4 {[%emt 0:01:27]} g6 {[%emt 0:00:07]} 3. Nc3 {[%emt 0:00:12]} d5 {[%emt 0:00:07]} 4. cxd5 {[%emt 0:00:12]} Nxd5 {[%emt 0:00:06]} 5. Bd2 {[%emt 0:00:22]} Nb6 {[%emt 0:03:28][%cal Ob8c6]} 6. e3 {[%emt 0:00:39] D85: Exchange Grünfeld: Unusual White 7th moves and lines with 7 Nf3.} Bg7 {[%emt 0:00:40]} 7. f4 {[%emt 0:00:05]} O-O {[%emt 0:05:46][%cal Oc7c5]} 8. Nf3 {[%emt 0:00:57] White has an edge.} Be6 {[%emt 0:03:12][%cal Oc7c5]} 9. Be2 {[%emt 0:13:21]} Bc4 {[%emt 0:10:35] [#]} 10. Ne5 $146 {[%emt 0:06:23]} ({Predecessor:} 10. O-O Na6 11. a4 c5 12. Nb5 cxd4 13. Nbxd4 Rc8 14. b4 Bxe2 15. Qxe2 Nc4 16. Rac1 Nxd2 17. Qxd2 {1-0 Borisova,E (2250)-Nur Mukhametova,A (2225) Cheliabinsk Panchenko Memorial op-B 2021 (8)}) 10... Bxe2 {[%emt 0:06:01]} 11. Qxe2 {[%emt 0:00:07]} N8d7 {[%emt 0:03:24][%cal Bb8d7,Bd7f6,Bf6g4][%mdl 32]} 12. O-O-O {[%emt 0:14:30]} c5 {[%emt 0:07:30]} 13. Qf3 {[%emt 0:10:44]} cxd4 {[%emt 0:06:49]} 14. exd4 {[%emt 0:00:05]} Nf6 {[%emt 0:04:11]} 15. Qxb7 {[%emt 0:03:33]} Qxd4 {[%emt 0:07:14] [#] Strongly threatening ...Nfd5.} 16. Nc6 {[%emt 0:02:01]} (16. Qxe7 $2 Nfd5 17. Qa3 Rfc8 $19) 16... Qc5 {[%emt 0:09:00] ...Nfd5 is the strong threat.} 17. Nxe7+ {[%emt 0:02:33]} (17. Qxe7 $2 Qxc6 18. Qe2 Rab8 $19) 17... Kh8 {[%emt 0:00:08]} 18. Rhe1 $1 {[%emt 0:00:07]} (18. Kb1 $2 Rfb8 19. Qc6 Qxe7 $19) 18... Ng4 {[%emt 0:13:44] Inhibits Be3.} (18... Nc4 $5) 19. Re4 {[%emt 0:16:11] Prevents Na4.} (19. Re2 $11) 19... Rfd8 {[%emt 0:07:52]} (19... Nxh2 $2 20. Be3 Qa5 21. f5 Bxc3 22. bxc3 Qxc3+ 23. Kb1 $18) (19... Rad8 $1 $15 20. b4 (20. Qxa7 $2 Nf2 $19) 20... Qh5) 20. Nc6 $2 {[%emt 0:08:26][%mdl 8192] Black converts the advantage convincingly.} (20. Kb1 $2 Rd7 21. Qc6 Qxc6 22. Nxc6 Nf2 $19) (20. Qc6 $11 Rac8 21. Qxc5 Rxc5 22. Re2) 20... Rd7 $19 {[%emt 0:07:23]} 21. Qxa8+ {[%emt 0:00:17]} Nxa8 {[%emt 0:00:05]} 22. Re8+ {[%emt 0:00:05]} Bf8 {[%emt 0:00:11]} 23. Nb8 {[%emt 0:00:22]} Rd3 {[%emt 0:03:45]} 24. Na6 {[%emt 0:04:06]} Qd6 {[%emt 0:00:10]} 25. Rxa8 {[%emt 0:00:55]} Kg7 {[%emt 0:00:39]} (25... Nxh2 $2 26. Nc7 $19) 26. Rxa7 {[%emt 0:01:27]} Nf2 {[%emt 0:00:54]} 27. Nc7 {[%emt 0:00:23]} Qc6 {[%emt 0:00:47]} (27... Nxd1 $2 28. Ne8+ Kg8 29. Nxd6 Nxc3 30. Bxc3 $18) 28. Re1 {[%emt 0:00:30]} Kh6 {[%emt 0:03:53]} (28... Qxg2 $2 {is the wrong capture.} 29. Ne6+ Kg8 30. Nxf8 Rxc3+ 31. Bxc3 $19) (28... Bb4 $142 {[%cal Rb4c3] ...Bxc3! would be deadly.} 29. Kc2 Qc4 30. Ne8+ Kf8) 29. N7b5 {[%emt 0:05:32]} f5 {[%emt 0:03:29]} ({Worse is} 29... Qxg2 30. Re2 f5 31. Kc2 $17) 30. Rf7 $2 {[%emt 0:09:42]} (30. g4 {is more resistant.} Nxg4 31. Kc2) 30... Bb4 {[%emt 0:00:28]} 31. a3 {[%emt 0:00:16]} Rxd2 {[%emt 0:01:20][%mdl 64] Decoy} 32. Kxd2 {[%emt 0:01:23] [#]} (32. axb4 Qxg2 33. Rxh7+ {[%mdl 64] Decoy} Kxh7 34. Re7+ Kh6 35. Kxd2) 32... Qd5+ $1 {[%emt 0:00:09]} (32... Qxb5 33. axb4 Qxb4 34. Ree7 Qxb2+ 35. Ke3 $11) 33. Ke2 {[%emt 0:00:58]} Qd3+ {[%emt 0:00:06] Black mates.} ({Weaker is} 33... Qxf7 34. Kxf2 Bc5+ 35. Ke2 $17) 34. Kxf2 {[%emt 0:00:15]} Bc5+ {[%emt 0:00:01]} 35. Re3 {[%emt 0:00:05]} Qxe3+ {[%emt 0:00:02]} 36. Kf1 {[%emt 0:00:01]} Qf2# {[%emt 0:00:01] A brilliant game!   Weighted Error Value: White=1.24/Black=0.64} 0-1